Cogmind - Beta 16 @@@ ROGUE MODE // 2025.12.06 @ 10:11:19 Player: opaguck Result: Destroyed by Y-45 Defender with Beam Rifle Performance ------------- Evolutions (1) 500 Regions Visited (3) 600 Robots Destroyed (35) 175 Value Destroyed (701) 701 Prototype IDs (1) 20 Alien Tech Used (0) 0 Bonus (32) 32 TOTAL SCORE: 2028 Bonus ------- Follower Combat Kills 172 Friendly Fire -140 Cogmind --------- Core Integrity 0/400 Matter 100/300 Energy 280/280 System Corruption 0% Temperature Cool (9) Movement Walking (120) Location -9/Storage Parts ------- > --- POWER (1) -------- Heavy Ion Engine > --- PROPULSION (2) --- Improved Aluminum Leg > --- UTILITY (4) ------ (None) > --- WEAPON (2) ------- Mini Grenade Launcher > --- INVENTORY (5) ---- Heavy Ion Engine Heavy Ion Engine Melee Analysis Suite Melee Analysis Suite Datajack Peak State ------------ > --- POWER ------------ Heavy Ion Engine > --- PROPULSION ------- Improved Aluminum Leg > --- UTILITY ---------- Drone Bay Drone Bay Drone Bay Drone Bay > --- WEAPON ----------- EM Pulse Cannon Mini Grenade Launcher > --- INVENTORY -------- Heavy Ion Engine Melee Analysis Suite Melee Analysis Suite Datajack Hammer [Rating: 31] Favorites ----------- Power Light Ion Engine Engine Light Ion Engine Propulsion Improved Aluminum Leg Leg Improved Aluminum Leg Utility Drone Bay Device Drone Bay Processor Melee Analysis Suite Weapon EM Pulse Gun Energy Gun EM Pulse Gun Energy Cannon EM Pulse Cannon Ballistic Gun Light Assault Rifle Launcher Mini Grenade Launcher Impact Weapon Hammer Build | -11 -10 -9 -9 ------- Run | Yrd Mat Mat Sto Slots Evolved 2 | . . 2 . Power . | . . . . Propulsion . | . . . . Utility 2 | . . 2 . Weapon . | . . . . Parts Attached 22 | 3 5 7 7 Power 4 | 1 1 1 1 Engine 4 | 1 1 1 1 Core . | . . . . Reactor . | . . . . Propulsion 2 | . . 1 1 Treads . | . . . . Leg 2 | . . 1 1 Wheel . | . . . . Hover . | . . . . Flight . | . . . . Utility 8 | . 2 2 4 Device 7 | . 2 1 4 Storage . | . . . . Processor 1 | . . 1 . Hackware . | . . . . Protection . | . . . . Artifact . | . . . . Weapon 8 | 2 2 3 1 Energy Gun 3 | 2 . 1 . Energy Cannon 2 | . . 2 . Ballistic Gun 1 | . 1 . . Ballistic Cannon . | . . . . Launcher 1 | . . . 1 Special Weapon . | . . . . Impact Weapon 1 | . 1 . . Slashing Weapon . | . . . . Piercing Weapon . | . . . . Special Melee Weapon . | . . . . Unidentified Prototypes 1 | . . . 1 Parts Lost 16 | . 5 5 6 Power 2 | . 1 1 . Propulsion 1 | . . . 1 Utility 8 | . 1 3 4 Weapon 5 | . 3 1 1 Highest Loss Streak 6 | . 5 2 6 To Critical Strikes . | . . . . Average Backups 3 | 4 4 1 4 Power . | 1 1 . . Propulsion . | . . . . Utility . | 1 1 . 2 Weapon . | . 1 . . Tool/Special . | . . . . Unused Backups 3 | . . . 3 Power 2 | . . . 2 Propulsion . | . . . . Utility . | . . . . Weapon . | . . . . Tool/Special 1 | . . . 1 Average Slot Usage (%) 58 | . 65 47 73 Engine 8 | . 13 8 3 Leg 2 | . . 1 10 Device 24 | . 24 18 38 Energy Gun 9 | . 24 7 . Energy Cannon 2 | . . . 11 Launcher 2 | . . . 10 Impact Weapon 6 | . 1 10 . Peak Build Rating 31 | 3 5 11 31 Average Rating 9 | 2 4 7 26 On Entrance 3 | . 3 2 9 Avg Prop Armor Cover (%) . | . . . . Naked Turns 4 | . . 4 . Heaviest Build 39 | 7 9 12 39 Greatest Support 13 | 3 3 13 13 Greatest Overweight (x) 12 | 2 2 3 12 Average Overweight (x) 1 | 1 1 1 1 Largest Inventory Capacity 5 | 5 5 5 5 Average Capacity 5 | 5 5 5 5 Most Carried 5 | 5 5 5 5 Average Carried 3 | 4 4 1 4 Final Capacity 5 | 5 5 5 5 Final Carried 5 | 5 3 5 5 Class Distribution -------------------- 100% | Mutant Dominant Class ---------------- Mutant | -10/Materials Mutant | -9/Materials Mutant | -9/Storage Resources | -11 -10 -9 -9 ----------- Run | Yrd Mat Mat Sto Matter Collected 275 | 230 30 . 15 Remotely . | . . . . Salvage Created 940 | 360 197 86 297 Parts 70 | 32 7 3 28 Haulers Intercepted . | . . . . Recyclers Shooed 1 | . . . 1 Parts Field Recycled . | . . . . Retrieved Matter . | . . . . Parts Self-Destructed . | . . . . Prevented . | . . . . Parts Restored . | . . . . Kills | -11 -10 -9 -9 ------- Run | Yrd Mat Mat Sto Combat Hostiles Destroyed 15 | . 4 3 8 Melee 2 | . 1 1 . Guns 3 | . 2 1 . Cannons 1 | . . 1 . AOE 9 | . 1 . 8 Classes Destroyed 10 | 3 1 1 5 Worker 6 | 4 . . 2 Builder 2 | . . . 2 Tunneler 9 | 9 . . . Recycler 1 | 1 . . . Operator 1 | . . . 1 Drone 2 | . . . 2 Grunt 11 | . 4 2 5 Duelist 2 | . . 1 1 Protector 1 | . . . 1 Sentry 1 | . . . 1 Thug 1 | . . . 1 Best Kill Streak 10 | 4 2 1 10 Combat Bots Only 7 | . 2 1 7 Max Kills in Single Turn 4 | 2 1 1 4 Gunslinging . | . . . . Exploded 3 | . 1 . 3 Melee 1 | . 1 1 . Uniques/NPCs Destroyed . | . . . . Combat | -11 -10 -9 -9 -------- Run | Yrd Mat Mat Sto Hostile Shots Fired 167 | . 53 67 47 Missed 50 | . 13 20 17 Hits 117 | . 40 47 30 Melee 11 | . . 5 6 Projectile 106 | . 40 42 24 Critical Strikes 7 | . 1 4 2 Damage Taken 1878 | 30 437 670 741 Core 565 | . 158 249 158 Absorbed by Shields . | . . . . Regen/Repaired (Parts) 6 | . . 6 . Core Remaining (%) 68 | 100 36 . . Volleys Fired 53 | 20 10 12 11 Largest 2 | 2 2 2 2 Hottest 126 | 80 80 126 93 Shots Fired 88 | 40 18 13 17 Gun 69 | 40 18 11 . Cannon 8 | . . 2 6 Launcher 11 | . . . 11 Special . | . . . . Kinetic 1 | . 1 . . Thermal 11 | . . 11 . Explosive 11 | . . . 11 Electromagnetic 65 | 40 17 2 6 Robot Hit Streak 10 | 8 6 10 10 Robot Miss Streak 6 | 2 1 6 3 Penetration Max . | . . . . Secondary Targets . | . . . . Shots Hit Robots 67 | 25 14 15 13 Core Hits 63 | 15 7 13 28 Critical Kills . | . . . . Critical Parts Destroyed 1 | . . 1 . Critical Strikes 1 | . . 1 . Smash 1 | . . 1 . Melee Attacks 7 | . 3 4 . Impact 7 | . 3 4 . Slashing . | . . . . Piercing . | . . . . Sneak Attacks . | . . . . Combat Hostiles . | . . . . Follow-up Attacks . | . . . . Damage Inflicted 2301 | 381 334 277 1309 Guns 661 | 333 171 157 . Cannons 160 | . . 54 106 Explosions 1363 | 48 112 . 1203 Melee 117 | . 51 66 . Ramming . | . . . . Kinetic . | . . . . Thermal 317 | 48 112 157 . Explosive 1203 | . . . 1203 Electromagnetic 664 | 333 171 54 106 Impact 117 | . 51 66 . Slashing . | . . . . Piercing . | . . . . Highest Corruption . | . . . . Average Corruption . | . . . . Corruption Purged . | . . . . Corruption Blocked . | . . . . Overload Shots . | . . . . Overflow Damage 38 | . . 26 12 Projectiles . | . . . . Explosions 12 | . . . 12 Melee 26 | . . 26 . Knockbacks . | . . . . Impact . | . . . . Kinetic . | . . . . Secondary . | . . . . Self-Inflicted Damage 280 | 30 24 . 226 Shots 9 | 1 1 . 7 Rammed . | . . . . Targets Rammed . | . . . . Kicked . | . . . . Crushed . | . . . . Highest Temperature 126 | 72 126 94 117 Average Temperature 37 | 24 63 37 36 Received Heat Transfer 630 | . 126 294 210 Siege Activations . | . . . . Martial Activations . | . . . . Shielding Activations . | . . . . Robots Disrupted . | . . . . Combat Hostiles . | . . . . Robots Corrupted . | . . . . Combat Hostiles . | . . . . Parts Fried 4 | 1 1 1 1 Impact Corruptions 1 | . . 1 . Robots Melted . | . . . . Combat Hostiles . | . . . . Parts Melted . | . . . . Heat Transferred 390 | 100 100 190 . Parts Sabotaged . | . . . . Parts Stolen . | . . . . Parts Stripped . | . . . . Power Chain Reactions 2 | 1 1 . . Alert | -11 -10 -9 -9 ------- Run | Yrd Mat Mat Sto Maximum Alert Level 1 | . . . 1 Low Security (%) 98 | 100 100 100 94 Level 1 1 | . . . 5 Level 2 . | . . . . Level 3 . | . . . . Level 4 . | . . . . Level 5 . | . . . . High Security . | . . . . Max Security . | . . . . Peak Influence 256 | 15 50 44 256 Initial 18 | . . 18 11 Average 8 | 1 9 4 24 Influence Increases 752 | 70 151 91 440 Destroy 0b10 Robot/C 400 | . 80 60 260 Destroy 0b10 Robot/NC 105 | 70 . . 35 Destroy Leader 82 | . 20 20 42 Allied During Kill 34 | . . . 34 Successful Hack 15 | . 4 11 . Disable Machine 15 | . . . 15 Destroy Structure 56 | . 2 . 54 Lose Combat Pursuer 45 | . 45 . . Influence Decreases 503 | 70 106 108 219 Entered New Map 44 | . . 27 17 Time Decay 277 | 70 74 61 72 Lost Part 112 | . 32 20 60 Lost Ally 70 | . . . 70 Squads Dispatched 3 | . . 1 2 Investigation . | . . . . Extermination . | . . . . Reinforcement 1 | . . 1 . Assault 2 | . . . 2 Garrison . | . . . . Intercept . | . . . . Searches Triggered . | . . . . Construction Impeded . | . . . . Haulers Reinforced . | . . . . Active Scanning Responses . | . . . . Cargo Convoy Interrupts . | . . . . Stealth | -11 -10 -9 -9 --------- Run | Yrd Mat Mat Sto Distress Signals 6 | . 2 1 3 Communications Jammed . | . . . . Distress Signals . | . . . . Times Spotted 43 | . 10 13 20 Peak Tracking Total 12 | . 4 6 12 Tactical Retreats 1 | . 1 . . Traps | -11 -10 -9 -9 ------- Run | Yrd Mat Mat Sto Traps Triggered . | . . . . Indirectly . | . . . . Trap Hack Attempts . | . . . . Triggered . | . . . . Disarmed . | . . . . Reprogrammed . | . . . . Reused . | . . . . Traps Extracted . | . . . . Installed . | . . . . Triggered . | . . . . Machines | -11 -10 -9 -9 ---------- Run | Yrd Mat Mat Sto Machines Disabled 1 | . . . 1 Max in Single Turn 1 | . . . 1 Machines Repaired . | . . . . Machines Dismantled . | . . . . Machines Sabotaged . | . . . . Overloaded Fab Kills . | . . . . Hacking | -11 -10 -9 -9 --------- Run | Yrd Mat Mat Sto Machines Accessed 8 | . 3 3 2 Terminals 6 | . 3 1 2 Fabricators . | . . . . Repair Stations 1 | . . 1 . Recycling Units . | . . . . Scanalyzers 1 | . . 1 . Garrison Access . | . . . . Total Hacks 17 | . 6 7 4 Successful 8 | . 2 5 1 Failed 9 | . 4 2 3 Catastrophic 1 | . 1 . . Database Lockouts . | . . . . Manual . | . . . . Terminals 11 | . 6 1 4 Fabricators . | . . . . Repair Stations 3 | . . 3 . Recycling Units . | . . . . Scanalyzers 3 | . . 3 . Garrison Access . | . . . . Terminal Hacks 4 | . 2 1 1 Robot Analysis 1 | . . 1 . Open Door 1 | . . . 1 Locate Traps 2 | . 2 . . Fabricator Hacks . | . . . . Repair Station Hacks 2 | . . 2 . Scan Component 1 | . . 1 . Repair 1 | . . 1 . Recycling Unit Hacks . | . . . . Scanalyzer 2 | . . 2 . Retrieve Study 2 | . . 2 . Garrison Access Hacks . | . . . . Unauthorized Hacks . | . . . . Terminals . | . . . . Fabricators . | . . . . Repair Stations . | . . . . Recycling Units . | . . . . Scanalyzers . | . . . . Garrison Access . | . . . . Data Cores Recovered . | . . . . Used . | . . . . Hacking Detections 4 | . 2 1 1 Full Trace Events 1 | . . 1 . Feedback Events . | . . . . Feedback Blocked . | . . . . Robot Schematics Acquired . | . . . . Robots Built . | . . . . Authchips . | . . . . Time . | . . . . Total Robot Build Rating . | . . . . Part Schematics Acquired . | . . . . Parts Built . | . . . . Authchips . | . . . . Time . | . . . . Total Part Build Rating . | . . . . Part Studies Acquired 2 | . . 2 . Parts Repaired 1 | . . 1 . Time 26 | . . 26 . Parts Recycled . | . . . . Recycled Matter . | . . . . Retrieved Matter . | . . . . Retrieved Components . | . . . . Parts Scanalyzed . | . . . . Part Schematics Acquired . | . . . . Parts Damaged . | . . . . Bothacking | -11 -10 -9 -9 ------------ Run | Yrd Mat Mat Sto Used RIF Installer . | . . . . Robots Hacked . | . . . . Non-combat . | . . . . Combat . | . . . . Robot Hacks Applied . | . . . . Relay Couplers Released . | . . . . Fabnet Peak Effective % . | . . . . Robots Rewired . | . . . . Allies Hacked . | . . . . Hacks Repelled . | . . . . Allies | -11 -10 -9 -9 -------- Run | Yrd Mat Mat Sto Total Allies 2 | . . . 2 Largest Group 2 | . . . 2 Highest-Rated Group 62 | . . . 62 Highest-Rated Ally 31 | . . . 31 Total Orders . | . . . . Ally Attacks 30 | . . . 30 Total Damage 481 | . . . 481 Kills 7 | . . . 7 Allies Corrupted 2 | . . . 2 Allies Melted . | . . . . Intel | -11 -10 -9 -9 ------- Run | Yrd Mat Mat Sto Active Infowar (turns) 1204 | . 406 798 . Terrain 798 | . . 798 . Structural 1095 | . 364 731 . Seismic 392 | . 392 . . Robot Analysis Total 1 | . . 1 . Derelict Logs Recovered . | . . . . Drone Launches 9 | . . . 9 Drone Recoveries 2 | . . . 2 Exploration | -11 -10 -9 -9 ------------- Run | Yrd Mat Mat Sto Turns Passed 2192 | 439 433 932 388 Spaces Moved 763 | 164 263 225 111 Core 582 | 164 263 152 3 Treads . | . . . . Legs 181 | . . 73 108 Wheels . | . . . . Hover . | . . . . Flight . | . . . . Fastest Speed 50 | 50 50 50 120 Average Speed 156 | 146 138 138 249 Slowest Speed 650 | 150 150 200 650 Overloaded Moves . | . . . . Propulsion Burnouts . | . . . . Robots Hopped . | . . . . Potential Cave-ins . | . . . . Cave-ins Triggered . | . . . . Exploration Rate (%) 27 | 5 50 25 28 Regions Visited 3 Branch Regions 1 Pre-discovered Areas . | . . . . Known Exits Taken . | . . . . Unknown Exits Taken 3 | 1 1 1 . Scrap Searched . | . . . . Spaces Dug . | . . . . Terrain Destroyed 66 | . 2 . 64 Melee . | . . . . Projectile . | . . . . AOE 66 | . 2 . 64 Terrain Rammed . | . . . . Walls Destroyed . | . . . . Machines Disabled . | . . . . Actions | -11 -10 -9 -9 --------- Run | Yrd Mat Mat Sto Total 1664 | 323 309 825 207 Wait 789 | 129 26 565 69 Move 760 | 163 262 224 111 Hop . | . . . . Pick Up 27 | 8 2 10 7 Fast Attach 2 | . 1 . 1 Attach 22 | 3 4 9 6 Detach 1 | . . 1 . Swap . | . . . . Drop 3 | . 1 . 2 Fire 53 | 20 10 12 11 Melee 7 | . 3 4 . Ram . | . . . . Kick . | . . . . Crush . | . . . . Escape Stasis . | . . . . Rewire . | . . . . Trap . | . . . . Miscellaneous . | . . . . Route ------- -11/Scrapyard -10/Materials -9/Materials (discovered 2 exits: [*Mat] / *Sto) -9/Storage History --------- Turn | Location | Event 3 | -11/Scrapyard | Discovered new exit (range 16) 440 | -11/Scrapyard | Entered Materials 441 | -10/Materials | Build established: Mutant 739 | -10/Materials | Discovered new exit (range 7) 856 | -10/Materials | Core integrity fell below 50% 873 | -10/Materials | Entered another Materials area 873 | -9/Materials | Evolved 2 slots: Utility x2 893 | -9/Materials | Lost 5 parts (1p1u3w) 1063 | -9/Materials | Repaired Structural Scanner 1784 | -9/Materials | Core integrity fell below 50% 1791 | -9/Materials | Discovered new exit (range 8) 1798 | -9/Materials | Discovered new exit (range 15) 1805 | -9/Materials | Entered Storage 2043 | -9/Storage | Met a pair of Derelict thieves 2171 | -9/Storage | Core integrity fell below 20% 2193 | -9/Storage | Destroyed by Y-45 Defender with Beam Rifle Last Messages --------------- 02179_ I-25 Savior destroyed. 02179_ Drone Bay destroyed. 02179_ Destroyed Drone Bay. 02179_ Drone destroyed. 02179_ 10-EJI(g) destroyed. 02179_ U-05 Engineer lays Concrete. 02180_ K-01 Serf collects debris. 02181_ G-47 Trooper destroyed. 02181_ U-05 Engineer destroyed. 02183_ K-01 Serf collects debris. 02184_ W-16 Scout destroyed. 02185_ K-01 Serf collects debris. 02185_ U-05 Engineer builds a Wall. 02186_ K-01 Serf collects debris. 02189_ K-01 Serf destroyed. 02189_ U-05 Engineer destroyed. 02189_ K-01 Serf collects debris. 02190_ Drone Bay destroyed. 02192_ K-01 Serf collects debris. [Achievement: Back For More] Map ----- +----------------------------------------------------+ | ?????????????????????????????????## # # | | ?????????????????????????????????#T # # | | ?????????????????????????????????## + # | | ??????????????????????????????????# # # | | ??????????????????????????????????# # # | | ?????????????????????????????????## ^^# # | | ?????????????????????????????????## # # | | ????????????????????????????????? # # # | | ?????????????????????????????????## ##+#### | | ??????????????????????????######?## #??? | | ??????????????????????????#* * #### #??? | | ??????????????????????????# #T## #??? | | ??????????????????????????# " + #??? | | ??????????????????????????#*/ # #??? | | ??????????????????????????# " # #??? | | ??????????????????????????#** !# # #??? | | ??????????????????????????######### % #??? | | ????????????????????################+#####??? | | ??????????????? ????# ## #??? | | ???????????????"" ??# """ """ ## #??? | | ???????????????"" ?# """ """ ## #??? | | ???????????# """ # " " """!## #??? | | ?????????????? ]= #*% #??? | | ?????????????##### =%/% %[k%% #??? | | ????????? !!! * ! = *#%[ #??? | | ???????? !! Y @[ %=% %= #??? | | ????????? !! |= =#% #??? | | ????????? [ ##########??? | | ?????????? #######???????? | | ?????????? # ## ### #?????????????? | | ??????????? # ? ?? ????????????? | | ?????????? !?# ??? ???????????? | | ??????????? ??#?""" "???""" #??????????? | | ??????????? ????r""" ""???"" #??????????? | | ???????????? ????#m""" ""????" #??????????? | | ???????????? ?????+??? ??????????????????? | | ???????????????????????###??????????????????? | | ????????????????????????????????????????????? | | ????????????????????????????????????????????? | | ????????????????????????????????????????????? | | ????????????????????????????????????????????? | | ????????????????????????????????????????????? | | ????????????????????????????????????????????? | | ????????????????????????????????????????????? | | ????????????????????????????????????????????? | | ????????????????????????????????????????????? | | ????????????????????????????????????????????? | | ????????????????????????????????????????????? | | ????????????????????????????????????????????? | | ????????????????????????????????????????????? | +----------------------------------------------------+ Best States ------------- Heat Dissipation 28 Energy Generation 14 Energy Capacity 280 Matter Stores 300 Matter Capacity 300 Sight Range 16 Terrain Scan Range 16 Terrain Scan Density 10 Evasion (%) 55 Melee Accuracy 5 Item Schematics ----------------- None Robot Schematics ------------------ None Fabricated ------------ Nothing Repaired ---------- Structural Scanner | 70% | -9/Materials Studied --------- Datajack | -9/Materials | Hacked Hammer | -9/Materials | Hacked Alien Tech Used ----------------- None Achievements -------------- Back For More Challenges ------------ None Game ------ Seed BoltCloakingShooter Manual? 0 Play Time 00:16:23 Cumulative 29.5 hours Start 2025.12.06 @ 09:55:22 End 2025.12.06 @ 10:11:19 Sessions 1 Manual Loads 0 Difficulty Rogue Special Mode None Game No. 50 Rogue 50 Adventurer 0 Explorer 0 Win Type - Total 0 Types 0/0/0/0/0/0/0/0/0/0 Lore% 22 Gallery% 26 Achievement% 19 Wizard Run 0 Options --------- Layout 1 ASCII 0 Keyboard 0 Movement Mouse Keybinds 0 Fullscreen 2 Font 24/Smallcaps Map View 50x35 Zoom Use 0% Tactical HUD 1 Map Filters NONE Filters NONE Steam 1 RUN: da39f575-0c7d-4898-8b1e-40e378dec3fc